bitfinex-derivatives/quotes_ETHF0:USTF0_20250712
["timestamp","ask_amount","ask_price","bid_price","bid_amount"]
[1752354909049,4.29209725,2925.9,2925.8,2.5632]
[1752354909959,4.29209725,2925.9,2925.8,1.6306]
[1752354910264,1.29565,2925.4,2925.3,1.29433]
[1752354910557,4.28689294,2925.4,2925.3,2.5279]
[1752354911459,3.34146294,2925.4,2925.3,0.6109]
[1752354911655,3.34146294,2925.4,2925.3,2.5279]
[1752354912161,4.28686294,2925.4,2925.3,2.5279]
[1752354914461,2.24102,2925.4,2925.3,3.21135]
[1752354914652,1.5576,2925.4,2925.3,3.21135]
[1752354915464,4.7654,2925.5,2925.4,2.25262]
[1752354915664,4.7654,2925.5,2925.4,3.21132]
[1752354915964,1.5576,2925.5,2925.4,3.21132]
[1752354916159,4.7654,2925.5,2925.4,3.21132]
[1752354916365,24.8536,2925.6,2925.5,1.5692]
[1752354916566,25.53698,2925.6,2925.5,3.2113]
[1752354916959,24.8536,2925.6,2925.5,3.2113]
[1752354917664,25.53698,2925.6,2925.5,3.2113]
[1752354918964,5.44878,2925.6,2925.5,3.2113]
[1752354919164,28.74178,2925.6,2925.5,3.2113]
[1752354919967,29.84112294,2925.6,2925.5,3.2113]
[1752354920266,29.15574294,2925.6,2925.5,3.2113]
[1752354921165,29.83912294,2925.6,2925.5,3.2113]
[1752354921365,29.83912294,2925.6,2925.5,2.5279]
[1752354921564,29.83912294,2925.6,2925.5,3.2113]
[1752354921764,29.15574294,2925.6,2925.5,3.2113]
[1752354922470,29.83912294,2925.6,2925.5,3.2113]
[1752354923070,29.83912294,2925.6,2925.5,2.5279]
[1752354923465,29.83912294,2925.6,2925.5,3.2113]
[1752354924077,26.63132294,2925.6,2925.5,3.2113]
[1752354924365,30.78562294,2925.6,2925.5,2.5279]
[1752354924771,7.49462294,2925.6,2925.5,2.5279]
[1752354924976,30.77562294,2925.6,2925.5,2.5279]
[1752354925872,7.49462294,2925.6,2925.5,2.5279]
[1752354926079,30.77462294,2925.6,2925.5,2.5279]
[1752354928176,31.82970623,2925.6,2925.5,2.5279]
[1752354928376,31.82970623,2925.6,2925.5,3.2113]
[1752354929975,8.54970623,2925.6,2925.5,3.2113]
[1752354930170,26.99102623,2925.6,2925.5,3.2113]
[1752354930475,27.67440623,2925.6,2925.5,3.2113]
[1752354930672,30.88220623,2925.6,2925.5,3.2113]
[1752354930974,30.88220623,2925.6,2925.5,2.5279]
[1752354931376,6.91982623,2925.6,2925.5,3.2113]
[1752354931573,30.19882623,2925.6,2925.5,3.2113]
[1752354932078,29.14374294,2925.6,2925.5,3.2113]
[1752354932876,26.61932294,2925.6,2925.5,3.2113]
[1752354935772,24.8366,2925.6,2925.5,3.2113]
[1752354936077,25.51998,2925.6,2925.5,3.2113]
[1752354937478,25.51998,2925.6,2925.5,2.5279]
[1752354938273,25.51898,2925.6,2925.5,2.5279]
[1752354938881,25.51898,2925.6,2925.5,3.2113]
[1752354940381,26.45388,2925.6,2925.5,2.5279]
[1752354941181,26.45388,2925.6,2925.5,3.2113]
[1752354941481,25.51898,2925.6,2925.5,2.5279]
[1752354941883,25.51898,2925.6,2925.5,3.2113]
[1752354942180,26.45388,2925.6,2925.5,3.2113]
[1752354943183,24.8346,2925.6,2925.5,3.2113]
[1752354943375,2.24098,2925.6,2925.5,3.2113]
[1752354943578,1.70817,2926.1,2925.5,3.2113]
[1752354943579,4.1389,2926.1,2926.0,2.57288]
[1752354943777,28.73856,2926.1,2926.0,2.5553]
[1752354943978,29.67346,2926.1,2926.0,2.5553]
[1752354944178,30.72880645,2926.1,2926.0,2.5553]
[1752354945380,0.68333,2925.8,2925.7,2.5553]
[1752354945588,1.32278,2925.6,2925.5,2.5553]
[1752354945881,3.18882,2925.4,2925.3,2.5553]
[1752354946081,27.56416294,2925.4,2925.3,2.5553]
[1752354952685,27.56416294,2925.4,2925.3,0.9284]
[1752354952893,27.56416294,2925.4,2925.1,3.23879]
[1752354952894,3.18887,2925.2,2925.1,3.23879]
[1752354953282,25.7824,2925.2,2925.1,3.23879]
[1752354953482,26.88174294,2925.2,2925.1,3.23879]
[1752354953682,25.94684294,2925.2,2925.1,3.23879]
[1752354953882,26.63031294,2925.2,2925.1,2.5553]
[1752354954083,26.88174294,2925.2,2925.1,2.5553]
[1752354954283,26.88174294,2925.2,2925.1,3.23879]
[1752354954686,27.56521294,2925.2,2925.1,2.5553]
[1752354955385,27.56521294,2925.2,2925.1,3.23879]
[1752354956287,27.56521294,2925.2,2925.1,2.5553]
[1752354957988,30.77301294,2925.2,2925.1,2.5553]
[1752354958488,30.77301294,2925.2,2925.1,1.5941]
[1752354959184,30.77301294,2925.2,2925.1,0.9284]
[1752354959384,31.82690065,2925.2,2925.1,0.9284]
[1752354959790,31.82589548,2925.2,2925.1,0.9284]
[1752354960492,31.82589548,2925.2,2925.1,1.5941]
[1752354961494,31.82589548,2925.2,2925.1,0.9284]
[1752354962195,30.77301294,2925.2,2925.1,1.5941]
[1752354962395,30.77301294,2925.2,2925.1,2.5553]
[1752354963697,30.77301294,2925.2,2925.1,3.23879]
[1752354963990,30.77301294,2925.2,2925.1,2.5553]
[1752354965495,5.46177,2925.2,2925.1,3.23879]
[1752354965698,28.74077,2925.2,2925.1,3.23879]
[1752354966802,3.2078,2925.2,2925.1,3.23879]
[1752354972199,3.89127,2925.2,2925.1,3.23879]
[1752354972403,4.85647,2925.2,2925.1,3.23879]
[1752354972598,3.2078,2925.2,2925.1,3.23879]
[1752354975001,1.78279294,2925.3,2925.2,0.68347]
[1752354975303,2.74799294,2925.3,2925.2,3.23647]
[1752354975703,3.41099294,2925.3,2925.2,3.23647]
[1752354976200,3.41099294,2925.3,2925.2,2.553]
[1752354976201,4.33819294,2925.3,2925.2,2.553]
[1752354976601,4.33819294,2925.3,2925.2,3.23647]
[1752354976897,4.33819294,2925.3,2925.2,2.553]
[1752354977295,2.31169,2925.1,2925.0,2.553]
[1752354977495,3.41103294,2925.1,2925.0,3.23652]
[1752354978100,4.33823294,2925.1,2925.0,3.23652]
[1752354980802,4.33823294,2925.1,2925.0,2.553]
[1752354981703,4.33823294,2925.1,2925.0,0.9814]
[1752354981704,7.54603294,2925.1,2925.0,0.9814]
[1752354981909,7.54603294,2925.1,2925.0,2.553]
[1752354983007,7.54603294,2925.1,2925.0,1.5878]
[1752354983398,3.23894,2924.9,2924.8,1.5878]
[1752354983605,27.61528294,2924.9,2924.8,2.27136]
[1752354983910,27.61528294,2924.9,2924.8,3.23656]
[1752354984611,27.61528294,2924.9,2924.8,2.553]
[1752354985105,27.61528294,2924.9,2924.8,1.5878]
[1752354985309,27.61528294,2924.9,2924.8,3.23656]
[1752354987009,26.93174294,2924.9,2924.8,3.23656]
[1752354987405,27.61528294,2924.9,2924.8,3.23656]
[1752354988907,27.61528294,2924.9,2924.8,2.553]
[1752354989715,27.61528294,2924.9,2924.8,3.23656]
[1752354990314,27.61528294,2924.9,2924.8,2.553]
[1752354991811,27.61528294,2924.9,2924.8,1.5878]
[1752354992013,27.61628294,2924.9,2924.8,0.9814]
[1752354992214,2.31179,2924.7,2924.6,3.23661]
[1752354992415,4.33833294,2924.7,2924.6,3.23661]
[1752354992921,4.33833294,2924.7,2924.6,2.553]
[1752354994722,4.33833294,2924.7,2924.6,3.23661]
[1752354997030,2.72754294,2924.7,2924.6,3.23661]
[1752354997219,26.00454294,2924.7,2924.6,3.23661]
[1752354997424,24.9052,2924.7,2924.6,3.23661]
[1752355000129,25.58879,2924.7,2924.6,3.23661]
[1752355000329,24.9052,2924.7,2924.6,3.23661]
[1752355000730,25.58879,2924.7,2924.6,3.23661]
[1752355001133,24.9052,2924.7,2924.6,3.23661]
[1752355003930,23.9117,2924.9,2924.8,2.4327]
[1752355004127,25.56964,2924.9,2924.8,2.4327]
[1752355004332,26.51114,2924.9,2924.8,3.11626]
[1752355004927,26.51114,2924.9,2924.8,2.4327]
[1752355005430,26.51114,2924.9,2924.8,3.11626]
[1752355006231,0.6347,2924.8,2924.7,0.9195]
[1752355006532,0.6347,2924.8,2924.7,2.4327]
[1752355006732,2.25976,2924.8,2924.7,3.11629]
[1752355006932,3.23416,2924.8,2924.7,3.11629]
[1752355007332,2.5506,2924.8,2924.7,3.11629]
[1752355007633,1.5762,2924.8,2924.7,3.11629]
[1752355007835,2.25976,2924.8,2924.7,3.11629]
[1752355008026,3.23416,2924.8,2924.7,3.11629]
[1752355008530,2.5506,2924.8,2924.7,3.11629]
[1752355008728,1.5762,2924.8,2924.7,3.11629]
[1752355008932,2.25976,2924.8,2924.7,3.11629]
[1752355009234,1.5762,2924.8,2924.7,3.11629]
[1752355009438,3.23416,2924.8,2924.7,3.11629]
[1752355009931,2.5506,2924.8,2924.7,3.11629]
[1752355010130,6.44191,2925.1,2925.0,3.11622]
[1752355010330,29.8335237,2925.1,2925.0,3.11622]
[1752355010532,7.5000237,2925.1,2925.0,3.11622]
[1752355010734,0.9415,2925.4,2925.3,0.68345]
[1752355011031,29.80070118,2925.4,2925.3,3.11615]
[1752355012636,29.11728118,2925.4,2925.3,3.11615]
[1752355013037,29.80070118,2925.4,2925.3,2.4327]
[1752355013230,30.77510118,2925.4,2925.3,2.4327]
[1752355013427,30.77510118,2925.4,2925.3,3.11615]
[1752355013634,29.11728118,2925.4,2925.3,3.11615]
[1752355013834,29.80070118,2925.4,2925.3,3.11615]
[1752355014237,30.77510118,2925.4,2925.3,2.4327]
[1752355014537,30.77510118,2925.4,2925.3,3.11615]
[1752355015132,5.84228118,2925.4,2925.3,3.11615]
[1752355015338,26.59190118,2925.4,2925.3,3.11615]
[1752355016036,25.53362,2925.4,2925.3,3.11615]
[1752355016237,26.5907711,2925.4,2925.3,3.11615]
[1752355016938,25.9073511,2925.4,2925.3,3.11615]
[1752355017337,24.8502,2925.4,2925.3,3.11615]
[1752355017534,25.53362,2925.4,2925.3,3.11615]
[1752355017840,24.8502,2925.4,2925.3,3.11615]
[1752355019640,25.53362,2925.4,2925.3,3.11615]
[1752355019836,2.25962,2925.4,2925.3,3.11615]
[1752355020036,24.8482,2925.4,2925.3,3.11615]
[1752355020338,25.53162,2925.4,2925.3,3.11615]
[1752355020742,24.8482,2925.4,2925.3,3.11615]
[1752355021138,26.50602,2925.4,2925.3,2.4327]
[1752355021339,26.50602,2925.4,2925.3,1.527]
[1752355021849,27.5618483,2925.4,2925.3,1.527]
[1752355022147,26.50602,2925.4,2925.3,1.527]
[1752355023046,26.50602,2925.4,2925.3,2.4327]
[1752355023344,26.50602,2925.4,2925.3,3.11615]
[1752355024741,26.50602,2925.4,2925.3,2.4327]
[1752355026446,26.50602,2925.4,2925.3,1.527]
[1752355027146,26.50602,2925.4,2925.3,2.21045]
[1752355028445,26.50602,2925.4,2925.3,3.14975]
[1752355028843,26.50602,2925.4,2925.3,2.4663]
[1752355029041,26.50602,2925.4,2925.3,0.9195]
[1752355029241,26.50602,2925.4,2925.3,2.20675]
[1752355029441,26.50602,2925.4,2925.3,3.14605]
[1752355032947,26.50402,2925.4,2925.3,3.14605]
[1752355034446,26.50302,2925.4,2925.3,3.14605]
[1752355034747,3.23402,2925.4,2925.3,3.14605]
[1752355034948,26.50302,2925.4,2925.3,3.14605]
[1752355036850,3.23402,2925.4,2925.3,3.14605]
[1752355037038,2.5506,2925.4,2925.3,3.14605]
[1752355037242,24.8442,2925.4,2925.3,3.14605]
[1752355038049,1.5762,2925.4,2925.3,3.14605]
[1752355038349,24.8442,2925.4,2925.3,3.14605]
[1752355042855,24.8432,2925.4,2925.3,3.14605]
[1752355043254,1.63669,2925.6,2925.1,1.70873]
[1752355043255,1.6201,2925.6,2925.5,3.1812]
[1752355043554,1.05654869,2925.6,2925.5,3.1812]
[1752355043762,4.8279,2925.8,2925.7,1.28715]
[1752355044049,5.88455616,2925.8,2925.7,3.18115]
[1752355044254,1.6201,2925.8,2925.7,3.18115]
[1752355044651,0.9741,2925.8,2925.7,3.18115]
[1752355044857,4.8071,2926.1,2926.0,3.18108]
[1752355045055,29.12955867,2926.1,2926.0,3.18108]
[1752355045560,4.8279,2926.1,2926.0,3.18108]
[1752355045857,3.2078,2926.1,2926.0,3.18108]
[1752355046351,1.6201,2926.2,2926.1,1.28706]
[1752355046546,1.6201,2926.2,2926.1,3.18106]
[1752355048458,24.8841,2926.2,2926.1,3.18106]
[1752355049459,4.8279,2926.4,2926.3,3.18101]
[1752355049658,28.0919,2926.4,2926.3,3.18101]
[1752355052853,28.77509,2926.4,2926.3,3.18101]
[1752355053159,28.0899,2926.4,2926.3,3.18101]
[1752355054162,24.8821,2926.4,2926.3,3.18101]
[1752355054358,1.6201,2926.4,2926.3,3.18101]
[1752355054661,24.8801,2926.4,2926.3,3.18101]
[1752355055363,1.6201,2926.4,2926.3,3.18101]
[1752355055667,2.71944294,2926.5,2926.4,2.22629]
[1752355055867,2.71944294,2926.5,2926.4,3.18099]
[1752355056161,4.1542,2926.7,2926.6,3.24444]
[1752355057258,2.04574294,2926.9,2926.8,0.6831]
[1752355057464,2.65074294,2926.9,2926.8,3.2692]
[1752355058065,1.5514,2926.9,2926.8,3.2692]
[1752355059165,4.30714294,2927.1,2927.0,0.68305]
[1752355059359,1.5514,2927.1,2927.0,3.26915]
[1752355059767,0.9464,2927.1,2927.0,3.26915]
[1752355061671,26.63992294,2927.3,2927.2,1.3271]
[1752355061872,25.95694294,2927.3,2927.2,3.2691]
[1752355062067,26.63992294,2927.3,2927.2,3.2691]
[1752355062270,27.58632294,2927.3,2927.2,3.2691]
[1752355062468,1.5514,2927.3,2927.2,3.2691]
[1752355063570,24.8054,2927.5,2927.4,2.28956]
[1752355063770,24.8054,2927.5,2927.4,3.26906]
[1752355063970,25.48833,2927.5,2927.4,3.26906]
[1752355064169,25.48833,2927.5,2927.4,2.5861]
[1752355064369,24.8054,2927.5,2927.4,3.26906]
[1752355064571,25.48833,2927.5,2927.4,3.26906]
[1752355065172,24.8054,2927.5,2927.4,3.26906]
[1752355066283,28.69613,2927.5,2927.4,3.26906]
[1752355066476,3.2078,2927.5,2927.4,3.26906]
[1752355066977,4.1542,2927.5,2927.4,3.26906]
[1752355067677,0.9464,2927.5,2927.4,3.26906]
[1752355068068,2.65074294,2927.7,2927.6,1.32701]
[1752355068275,25.90274294,2927.7,2927.6,3.26901]
[1752355068977,26.58563294,2927.7,2927.6,3.26901]
[1752355069478,26.58563294,2927.7,2927.6,2.5861]
[1752355069778,26.58563294,2927.7,2927.6,3.26901]
[1752355069972,26.58563294,2927.7,2927.6,2.5861]
[1752355070676,25.90274294,2927.7,2927.6,3.26901]
[1752355070978,3.33363294,2927.7,2927.6,3.26901]
[1752355071277,3.33363294,2927.7,2927.6,2.5861]
[1752355071473,1.5514,2927.7,2927.6,3.26901]
[1752355072077,0.9464,2927.8,2927.7,0.68289]
[1752355072274,0.9464,2927.8,2927.7,3.26899]
[1752355072479,0.9464,2927.9,2927.8,1.6236]
[1752355072778,0.9464,2927.9,2927.8,2.30646]
[1752355073277,0.9464,2927.9,2927.8,3.26896]
[1752355074572,4.7592,2928.1,2928.0,3.26892]
[1752355074980,5.44199,2928.1,2928.0,3.26892]
[1752355075182,6.54133294,2928.1,2928.0,3.26892]
[1752355075572,5.85854294,2928.1,2928.0,3.26892]
[1752355077174,0.605,2928.3,2928.2,0.68277]
[1752355077381,1.5514,2928.3,2928.2,3.26887]
[1752355077578,2.65074294,2928.3,2928.2,3.26887]
[1752355078682,1.5514,2928.8,2928.7,2.5861]
[1752355078980,3.22966,2928.7,2928.6,0.9795]
[1752355079180,7.53680294,2928.7,2928.6,1.66218]
[1752355080081,7.53680294,2928.7,2928.6,0.9795]
[1752355080285,1.5514,2928.2,2928.1,1.32689]
[1752355080680,0.9464,2928.2,2928.1,1.32689]
[1752355080880,0.9464,2928.2,2928.1,3.26889]
[1752355082082,2.547,2928.2,2928.1,3.26889]
[1752355082886,1.5514,2928.2,2928.1,3.26889]
[1752355086793,2.23417,2928.2,2928.1,3.26889]
[1752355086992,1.5514,2928.2,2928.1,3.26889]
[1752355092193,1.6184,2928.4,2928.3,3.28955]
[1752355092493,2.5788,2928.4,2928.3,3.28955]
[1752355093500,1.6184,2928.4,2928.3,3.28955]
[1752355096396,0.9935,2928.4,2928.3,3.28955]
[1752355097996,1.6184,2928.4,2928.3,3.28955]
[1752355098196,2.5788,2928.4,2928.3,3.28955]
[1752355098797,1.6184,2928.4,2928.3,3.28955]
[1752355101099,2.5788,2928.6,2928.5,3.2895]
[1752355101394,2.67300973,2928.6,2928.5,3.2895]
[1752355101994,1.6184,2928.6,2928.5,3.2895]
[1752355104402,2.5788,2928.8,2928.7,1.32995]
[1752355104702,3.63475351,2928.8,2928.7,3.28945]
[1752355104898,2.67435351,2928.8,2928.7,3.28945]
[1752355105503,1.6184,2928.8,2928.7,3.28945]
[1752355107102,0.68252,2929.3,2928.7,3.28945]
[1752355107103,0.6249,2929.3,2929.2,2.28854]
[1752355107307,2.64216346,2929.3,2929.2,3.28934]
[1752355107507,1.5853,2929.3,2929.2,3.28934]
[1752355107804,2.5788,2929.3,2929.2,3.28934]
[1752355108199,1.6184,2929.3,2929.2,3.28934]
[1752355110507,4.36066294,2929.3,2929.2,1.606]
[1752355111310,3.67814294,2929.3,2929.2,3.28934]
[1752355111807,2.5788,2929.3,2929.2,3.28934]
[1752355111996,1.6184,2929.3,2929.2,3.28934]
[1752355112201,0.9935,2929.3,2929.2,3.28934]
[1752355112999,1.6184,2929.3,2929.2,3.28934]
[1752355113199,4.8262,2929.5,2929.4,3.28929]
[1752355114712,1.6184,2929.5,2929.4,3.28929]
[1752355115409,0.6249,2930.0,2929.9,1.32968]
[1752355115611,2.5788,2930.0,2929.9,1.32968]
[1752355115911,3.67814294,2930.0,2929.9,1.32968]
[1752355116112,3.67814294,2930.0,2929.9,3.27698]
[1752355116607,2.5788,2930.0,2929.9,3.27698]
[1752355116912,1.6184,2930.0,2929.9,3.27698]
[1752355120211,5.7837,2930.2,2930.1,1.30383]
[1752355120512,5.7837,2930.2,2930.1,3.20293]
[1752355121210,7.56535294,2930.2,2930.1,2.5206]
[1752355122006,7.56535294,2930.2,2930.1,3.20293]
[1752355122511,7.56535294,2930.2,2930.1,2.5206]
[1752355123408,7.56535294,2930.2,2930.1,3.20293]
[1752355123613,6.88304294,2930.2,2930.1,3.20293]
[1752355124210,7.56535294,2930.2,2930.1,3.20293]
[1752355124613,6.88304294,2930.2,2930.1,3.20293]
[1752355126714,5.7837,2930.2,2930.1,3.20293]
[1752355127911,4.7875,2930.2,2930.1,3.20293]
[1752355130518,5.7837,2930.2,2930.1,3.20293]
[1752355132218,4.7875,2930.2,2930.1,3.20293]
[1752355133518,5.7837,2930.2,2930.1,3.20293]
[1752355133719,4.7875,2930.2,2930.1,3.20293]
[1752355135025,1.5797,2930.2,2930.1,3.20293]
[1752355140728,1.5797,2930.4,2930.3,3.20288]
[1752355141028,3.2078,2930.5,2930.4,3.20286]
[1752355142433,3.2078,2930.5,2930.3,1.09934294]
[1752355142434,1.5797,2930.9,2930.8,2.58127]
[1752355142631,1.5797,2930.9,2930.8,3.20277]
[1752355143326,3.88986,2931.3,2931.1,3.2027]
[1752355143327,0.6298,2931.2,2931.1,3.2027]
[1752355143527,1.626,2931.2,2931.1,3.2027]
[1752355143931,2.5759,2931.2,2931.1,3.2027]
[1752355144339,3.04544294,2931.2,2930.9,0.68214]
[1752355144628,1.5797,2931.0,2930.9,2.29224]
[1752355145029,1.5797,2931.0,2930.9,3.20274]
[1752355145430,0.9499,2931.0,2930.9,3.20274]
[1752355145729,1.5797,2931.2,2930.8,2.80475294]
[1752355145934,1.5797,2931.2,2931.1,3.2027]
[1752355147125,3.2078,2931.3,2931.2,0.68207]
[1752355147330,3.2078,2932.0,2931.2,6.01228294]
[1752355147531,0.6612,2931.7,2931.6,1.31576]
[1752355147831,2.5622,2931.7,2931.6,3.26826]
[1752355148029,1.5911,2931.9,2931.8,1.31573]
[1752355148333,2.5622,2931.9,2931.8,3.26823]
[1752355150036,1.6323,2931.9,2931.8,3.26823]
[1752355150643,0.6612,2931.7,2931.5,3.2078]
[1752355150838,2.5622,2931.3,2931.2,5.47667]
[1752355151034,2.5622,2931.3,2931.2,6.47617]
[1752355151935,1.6323,2931.3,2931.2,6.47617]
[1752355152136,3.2078,2932.0,2931.9,0.68191]
[1752355152331,1.5911,2932.0,2931.9,1.31571]
[1752355152535,1.5911,2932.0,2931.9,2.26871]
[1752355152835,2.5622,2932.0,2931.9,2.26871]
[1752355153036,2.5622,2932.0,2931.9,3.26821]
[1752355153832,2.5622,2932.0,2931.9,2.26871]
[1752355154042,3.66154294,2932.0,2931.9,0.68191]
[1752355154639,0.68197,2931.7,2931.5,0.68198]
[1752355154839,0.68197,2931.7,2931.2,4.2073]
[1752355154840,0.6612,2931.4,2931.3,1.5868]
[1752355155040,1.5911,2931.4,2931.3,2.26885]
[1752355155543,3.37247294,2931.4,2931.3,2.26885]
[1752355155842,3.37247294,2931.4,2931.1,0.68209]
[1752355155843,1.5911,2931.2,2931.1,0.68209]
[1752355156037,2.69044294,2931.2,2931.1,0.68209]
[1752355156634,3.66154294,2931.2,2931.1,0.68209]
[1752355156845,3.24435,2930.9,2930.8,0.68214]
[1752355157041,4.34369294,2930.9,2930.8,0.68214]
[1752355157244,1.34337,2930.8,2930.7,1.63517]
[1752355157437,1.34346,2930.4,2930.3,1.5868]
[1752355157645,4.34380294,2930.4,2930.3,2.26907]
[1752355157845,3.66154294,2930.4,2930.3,2.26907]
[1752355158348,4.34380294,2930.4,2930.3,1.5868]
[1752355158650,2.5622,2930.2,2930.1,6.47643]
[1752355159144,2.5622,2930.2,2930.1,3.26863]
[1752355159348,2.5622,2930.2,2930.1,2.26913]
[1752355159848,2.5622,2930.2,2930.1,3.26863]
[1752355160146,2.5622,2930.2,2929.8,3.2078]
[1752355160147,3.24458,2929.9,2929.8,3.8902]
[1752355160543,3.24458,2929.9,2929.8,3.2078]
[1752355160747,2.5622,2929.7,2929.5,3.2078]
[1752355160944,2.5622,2929.3,2929.2,5.47712]
[1752355161652,2.5622,2929.3,2929.2,3.89034]
[1752355161849,3.24472,2929.3,2929.2,3.89034]
[1752355162045,3.24472,2929.3,2929.2,3.2078]
[1752355162250,2.5622,2929.3,2929.2,3.89034]
[1752355162551,2.5622,2929.3,2929.2,5.47714]
[1752355168344,2.5622,2929.3,2929.2,6.47664]
[1752355168549,3.24472,2929.3,2929.2,5.47714]
[1752355169645,3.24476,2929.2,2929.1,0.6338]
[1752355169849,2.27366,2929.1,2929.0,2.26937]
[1752355170046,3.24476,2929.1,2929.0,1.5868]
[1752355170647,1.70634,2929.3,2928.8,0.953]
[1752355170849,0.6612,2928.8,2928.7,2.26946]
[1752355171155,1.6323,2928.8,2928.7,3.26896]
[1752355172757,2.5622,2928.8,2928.7,2.26946]
[1752355173157,2.5622,2928.8,2928.7,3.26896]
[1752355173759,3.24483,2928.8,2928.7,3.26896]
[1752355173957,2.5622,2928.8,2928.7,3.26896]
[1752355174954,3.24483,2928.8,2928.7,3.26896]
[1752355175154,3.24483,2928.8,2928.7,2.26946]
[1752355175356,3.24483,2928.8,2928.7,1.5868]
[1752355175653,2.5622,2928.4,2928.3,6.47685]
[1752355176048,3.24492,2928.4,2928.3,6.47685]
[1752355176353,3.24492,2928.4,2928.3,1.5868]
[1752355176552,1.6359,2928.2,2928.1,3.18768]
[1752355180659,4.8437,2928.7,2928.6,3.18758]
[1752355180963,1.6359,2928.7,2928.6,3.18758]
[1752355181862,1.5439,2929.0,2928.9,2.22001]
[1752355182164,0.637,2929.0,2928.9,3.18751]
[1752355182364,1.6359,2929.0,2928.9,3.18751]
[1752355186067,2.80258217,2929.6,2929.5,0.6256]
[1752355186068,1.6359,2929.6,2929.5,0.6256]
[1752355186370,2.5428,2929.6,2929.5,4.28381217]
[1752355186673,1.6359,2929.6,2929.5,3.18737]
[1752355186868,1.6359,2929.6,2929.5,4.28381217]
[1752355187871,2.5428,2929.6,2929.5,3.18737]
[1752355189472,3.22525,2929.6,2929.5,2.5049]
[1752355189769,3.59045707,2929.6,2929.5,2.27557]
[1752355190073,3.22525,2929.6,2929.5,2.27557]
[1752355190272,4.27345542,2929.6,2929.5,2.27557]
[1752355191071,3.59100542,2929.6,2929.5,2.27557]
[1752355191573,3.59100542,2929.6,2929.5,3.18737]
[1752355191872,2.68410542,2929.6,2929.5,3.18737]
[1752355193278,3.59100542,2929.6,2929.5,2.27557]
[1752355193972,4.27345542,2929.6,2929.5,2.27557]
[1752355194173,4.27345542,2929.6,2929.5,2.5049]
[1752355195678,4.27345542,2929.6,2929.5,1.5931]
[1752355198077,4.27345542,2929.6,2929.5,2.27557]
[1752355198875,3.59100542,2929.6,2929.5,2.27557]
[1752355199077,3.59100542,2929.6,2929.5,3.18737]
[1752355199278,2.5428,2929.6,2929.5,3.18737]
[1752355199480,4.27331787,2929.6,2929.5,3.18737]
[1752355199978,3.59086787,2929.6,2929.5,3.18737]
[1752355201179,2.5428,2929.6,2929.5,3.18737]
[1752355203375,3.22525,2929.6,2929.5,3.18737]
[1752355204384,2.5428,2929.6,2929.5,3.18737]
[1752355204879,3.22525,2929.6,2929.5,3.18737]
[1752355206182,2.5428,2929.6,2929.5,3.18737]
[1752355206387,3.22525,2929.6,2929.5,3.18737]
[1752355207183,2.5428,2929.6,2929.5,3.18737]
[1752355208887,3.22525,2929.6,2929.5,3.18737]
[1752355209390,1.6359,2929.6,2929.5,3.18737]
[1752355210185,3.2078,2929.9,2929.8,0.6824]
[1752355210388,6.82766588,2929.9,2929.8,3.2698]
[1752355210990,3.61986588,2929.9,2929.8,3.2698]
[1752355211391,2.5695,2929.9,2929.8,3.2698]
[1752355211589,2.32941,2930.2,2930.1,3.26973]
[1752355211793,2.69759058,2930.2,2930.1,3.26973]
[1752355212089,2.63659058,2930.2,2930.1,3.26973]
[1752355212290,4.7939,2930.4,2930.3,1.33928]
[1752355212488,6.52656174,2930.4,2930.3,3.26968]
[1752355212792,7.50996174,2930.4,2930.3,3.26968]
[1752355213891,6.82770174,2930.4,2930.3,3.26968]
[1752355214293,7.50996174,2930.4,2930.3,3.26968]
[1752355215197,6.82770174,2930.4,2930.3,3.26968]
[1752355215894,1.05040174,2930.4,2930.3,3.26968]
[1752355216098,2.26832,2930.6,2930.5,2.32224]
[1752355216396,1.05016148,2930.6,2930.5,3.26964]
[1752355216594,4.30187148,2930.6,2930.5,3.26964]
[1752355216902,3.61966148,2930.6,2930.5,3.26964]
[1752355217192,2.5695,2930.6,2930.5,3.26964]
[1752355218489,1.5861,2930.8,2930.7,0.68219]
[1752355218695,1.97143016,2930.8,2930.7,4.36603217]
[1752355218894,0.9224,2930.8,2930.7,4.36603217]
[1752355219103,4.7939,2931.0,2930.9,1.33914]
[1752355219398,4.7939,2931.0,2930.9,3.26954]
[1752355220199,5.7773,2931.0,2930.9,3.26954]
[1752355220896,6.45942,2931.0,2930.9,3.26954]
[1752355221096,5.7773,2931.0,2930.9,3.26954]
[1752355221798,4.7939,2931.0,2930.9,3.26954]
[1752355222698,0.6637,2931.2,2931.1,0.657]
[1752355222898,0.6637,2931.2,2931.1,4.36594217]
[1752355223091,1.5861,2931.2,2931.1,4.36594217]
[1752355223292,3.8715,2931.4,2931.3,1.33905]
[1752355223492,4.7939,2931.4,2931.3,3.26945]
[1752355224401,1.5861,2931.4,2931.3,3.26945]
[1752355225393,0.6637,2931.7,2931.6,3.26938]
[1752355225594,0.6637,2931.7,2931.6,6.47718]
[1752355225995,1.5861,2931.7,2931.6,6.47718]
[1752355226395,1.5861,2931.7,2931.6,3.26938]
[1752355226607,3.25146,2931.7,2931.6,1.6044]
[1752355226809,1.6471,2931.6,2931.5,2.5874]
[1752355227004,3.25148,2931.6,2931.5,2.5874]
[1752355227306,3.25148,2931.6,2931.5,3.2694]
[1752355227707,3.25155,2931.3,2931.2,2.5874]
[1752355227901,2.5695,2931.3,2931.2,3.26945]
[1752355228408,3.25155,2931.3,2931.2,3.26945]
[1752355229404,3.25155,2931.3,2931.2,2.5874]
[1752355229603,0.68204,2931.4,2931.3,0.9474]
[1752355229801,3.25154,2931.4,2931.3,2.5874]